[Event "MČR juniorů a juniorek v rapid šachu 2024"]
[Site "Hotel Fit Fun, Harrachov, Czech Republic"]
[Date "2024.09.22"]
[Round "9.1"]
[White "Rybackova Lucie"]
[Black "Skypala Ondrej"]
[Result "0-1"]
[TimeControl "20+5"]
[WhiteFideId "23739207"]
[BlackFideId "366285"]
[WhiteElo "1933"]
[BlackElo "2033"]

1. d4 {[%clk 00:20:09]} Nf6 {[%clk 00:20:09]} {[%emt 00:00:02]} 2. Nf3 {[%clk
00:20:12]} {[%emt 00:00:01]} e6 {[%clk 00:20:12]} {[%emt 00:00:01]} 3. g3
{[%clk 00:20:15]} {[%emt 00:00:01]} b5 {[%clk 00:20:16]} {[%emt 00:00:02]} 4.
Bg2 {[%clk 00:20:18]} {[%emt 00:00:02]} Bb7 {[%clk 00:20:20]} {[%emt 00:00:02]}
5. O-O {[%clk 00:20:20]} {[%emt 00:00:03]} c5 {[%clk 00:20:19]} {[%emt
00:00:06]} 6. a4 {[%clk 00:20:19]} {[%emt 00:00:06]} b4 {[%clk 00:20:15]}
{[%emt 00:00:08]} 7. c4 {[%clk 00:20:13]} {[%emt 00:00:11]} cxd4 {[%clk
00:20:13]} {[%emt 00:00:08]} 8. Nxd4 {[%clk 00:20:08]} {[%emt 00:00:10]} Bxg2
{[%clk 00:20:16]} {[%emt 00:00:02]} 9. Kxg2 {[%clk 00:20:11]} {[%emt 00:00:01]}
Qc7 {[%clk 00:19:54]} {[%emt 00:00:27]} 10. b3 {[%clk 00:19:14]} {[%emt
00:01:02]} Bc5 {[%clk 00:19:58]} {[%emt 00:00:02]} 11. Bb2 {[%clk 00:18:29]}
{[%emt 00:00:50]} O-O {[%clk 00:19:59]} {[%emt 00:00:04]} 12. Nd2 {[%clk
00:17:12]} {[%emt 00:01:21]} a6 {[%clk 00:19:49]} {[%emt 00:00:15]} 13. N2f3
{[%clk 00:16:40]} {[%emt 00:00:37]} d6 {[%clk 00:19:47]} {[%emt 00:00:08]} 14.
Qc2 {[%clk 00:16:13]} {[%emt 00:00:29]} Nbd7 {[%clk 00:19:50]} {[%emt
00:00:04]} 15. e4 {[%clk 00:15:54]} {[%emt 00:00:25]} Qb7 {[%clk 00:19:40]}
{[%emt 00:00:15]} 16. Rfe1 {[%clk 00:15:36]} {[%emt 00:00:23]} Rac8 {[%clk
00:19:14]} {[%emt 00:00:30]} 17. Qe2 {[%clk 00:13:38]} {[%emt 00:02:03]} Rfe8
{[%clk 00:18:58]} {[%emt 00:00:21]} 18. Kg1 {[%clk 00:11:35]} {[%emt 00:02:07]}
h6 {[%clk 00:18:59]} {[%emt 00:00:04]} 19. Rad1 {[%clk 00:11:09]} {[%emt
00:00:31]} d5 {[%clk 00:18:49]} {[%emt 00:00:15]} 20. e5 {[%clk 00:11:00]}
{[%emt 00:00:13]} Ne4 {[%clk 00:18:53]} {[%emt 00:00:02]} 21. Nd2 {[%clk
00:08:22]} {[%emt 00:02:43]} Nc3 {[%clk 00:18:50]} {[%emt 00:00:08]} 22. Bxc3
{[%clk 00:08:16]} {[%emt 00:00:11]} bxc3 {[%clk 00:18:54]} {[%emt 00:00:01]} 23.
N2f3 {[%clk 00:08:00]} {[%emt 00:00:20]} dxc4 {[%clk 00:18:57]} {[%emt
00:00:03]} 24. bxc4 {[%clk 00:07:48]} {[%emt 00:00:17]} Nb6 {[%clk 00:18:26]}
{[%emt 00:00:36]} 25. Rb1 {[%clk 00:06:51]} {[%emt 00:01:02]} Qc7 {[%clk
00:17:52]} {[%emt 00:00:39]} 26. a5 {[%clk 00:06:32]} {[%emt 00:00:24]} Bxd4
{[%clk 00:17:55]} {[%emt 00:00:02]} 27. axb6 {[%clk 00:05:59]} {[%emt
00:00:38]} Bxb6 {[%clk 00:17:58]} {[%emt 00:00:01]} 28. Rec1 {[%clk 00:05:57]}
{[%emt 00:00:07]} Ba5 {[%clk 00:17:47]} {[%emt 00:00:16]} 29. Qa2 {[%clk
00:05:33]} {[%emt 00:00:29]} Rb8 {[%clk 00:17:36]} {[%emt 00:00:17]} 30. Ra1
{[%clk 00:05:28]} {[%emt 00:00:10]} Bb4 {[%clk 00:16:55]} {[%emt 00:00:45]} 31.
Qxa6 {[%clk 00:05:08]} {[%emt 00:00:26]} Rec8 {[%clk 00:16:59]} 32. c5 {[%clk
00:03:45]} {[%emt 00:01:29]} Bxc5 {[%clk 00:16:38]} {[%emt 00:00:26]} 33. Qe2
{[%clk 00:03:25]} {[%emt 00:00:24]} Rb2 {[%clk 00:16:29]} {[%emt 00:00:14]} 34.
Rc2 {[%clk 00:03:27]} {[%emt 00:00:03]} Rcb8 {[%clk 00:15:25]} {[%emt
00:01:09]} 35. Rac1 {[%clk 00:03:01]} {[%emt 00:00:31]} Qb6 {[%clk 00:14:40]}
{[%emt 00:00:50]} 36. Ne1 {[%clk 00:02:52]} {[%emt 00:00:14]} Rxc2 {[%clk
00:13:09]} {[%emt 00:01:36]} 37. Rxc2 {[%clk 00:02:45]} {[%emt 00:00:11]} Qb3
{[%clk 00:13:06]} {[%emt 00:00:07]} 38. Nd3 {[%clk 00:02:33]} {[%emt 00:00:18]}
Bd4 {[%clk 00:13:04]} {[%emt 00:00:07]} 39. h4 {[%clk 00:02:07]} {[%emt
00:00:30]} Qd5 {[%clk 00:12:57]} {[%emt 00:00:12]} 40. Rc1 {[%clk 00:01:57]}
{[%emt 00:00:15]} Ra8 {[%clk 00:12:49]} {[%emt 00:00:13]} 41. Kh2 {[%clk
00:00:43]} {[%emt 00:01:19]} Ra2 {[%clk 00:12:49]} {[%emt 00:00:04]} 42. Rc2
{[%clk 00:00:25]} {[%emt 00:00:24]} Ra1 {[%clk 00:12:50]} {[%emt 00:00:04]} 43.
Rc1 {[%clk 00:00:29]} Rxc1 {[%clk 00:12:47]} {[%emt 00:00:07]} 44. Nxc1 {[%clk
00:00:33]} Bxe5 {[%clk 00:12:37]} {[%emt 00:00:15]} 45. Nd3 {[%clk 00:00:34]}
{[%emt 00:00:04]} Bf6 {[%clk 00:12:40]} {[%emt 00:00:02]} 46. Nb4 {[%clk
00:00:32]} {[%emt 00:00:06]} Qd2 {[%clk 00:12:39]} {[%emt 00:00:06]} 47. Qf3
{[%clk 00:00:30]} {[%emt 00:00:07]} Bd4 {[%clk 00:12:11]} {[%emt 00:00:32]} 48.
Qa8+ {[%clk 00:00:27]} {[%emt 00:00:09]} Kh7 {[%clk 00:12:14]} {[%emt
00:00:02]} 49. Qe4+ {[%clk 00:00:31]} f5 {[%clk 00:12:09]} {[%emt 00:00:11]} 50.
Qc2 {[%clk 00:00:30]} {[%emt 00:00:06]} Bxf2 {[%clk 00:12:09]} {[%emt
00:00:05]} 0-1



[ePGN "0.1;DGT LiveChess/2.2.6"]

[Event "MČR juniorů a juniorek v rapid šachu 2024"]
[Site "Hotel Fit Fun, Harrachov, Czech Republic"]
[Date "2024.09.22"]
[Round "9.10"]
[White "Stocek Martin"]
[Black "Bartak Josef"]
[Result "1-0"]
[TimeControl "20+5"]
[WhiteFideId "380121"]
[BlackFideId "23712252"]
[WhiteElo "2021"]
[BlackElo "1902"]

1. d4 {[%clk 00:20:09]} {[%emt 00:31:45]} d5 {[%clk 00:20:08]} {[%emt
00:00:02]} 2. c4 {[%clk 00:20:13]} c6 {[%clk 00:20:13]} 3. Nf3 {[%clk
00:20:17]} {[%emt 00:00:02]} Nf6 {[%clk 00:20:17]} 4. Qb3 {[%clk 00:20:21]} g6
{[%clk 00:20:16]} {[%emt 00:00:06]} 5. cxd5 {[%clk 00:20:16]} {[%emt 00:00:10]}
cxd5 {[%clk 00:20:18]} {[%emt 00:00:03]} 6. Nc3 {[%clk 00:20:20]} {[%emt
00:00:01]} Bg7 {[%clk 00:20:22]} {[%emt 00:00:02]} 7. Bg5 {[%clk 00:20:23]}
{[%emt 00:00:02]} e6 {[%clk 00:20:05]} {[%emt 00:00:22]} 8. e3 {[%clk
00:20:26]} {[%emt 00:00:02]} O-O {[%clk 00:20:07]} {[%emt 00:00:03]} 9. Bd3
{[%clk 00:20:28]} {[%emt 00:00:03]} Nc6 {[%clk 00:19:59]} {[%emt 00:00:13]} 10.
O-O {[%clk 00:20:11]} {[%emt 00:00:22]} a6 {[%clk 00:19:22]} {[%emt 00:00:42]}
11. Ne5 {[%clk 00:20:15]} {[%emt 00:00:02]} h6 {[%clk 00:17:56]} {[%emt
00:01:31]} 12. Bh4 {[%clk 00:20:08]} {[%emt 00:00:12]} Qa5 {[%clk 00:16:27]}
{[%emt 00:01:34]} 13. Nxc6 {[%clk 00:19:52]} {[%emt 00:00:21]} bxc6 {[%clk
00:16:31]} {[%emt 00:00:02]} 14. Na4 {[%clk 00:19:45]} {[%emt 00:00:12]} Nd7
{[%clk 00:16:24]} {[%emt 00:00:12]} 15. Be7 {[%clk 00:16:48]} {[%emt 00:03:01]}
Re8 {[%clk 00:16:08]} {[%emt 00:00:22]} 16. Bb4 {[%clk 00:16:50]} {[%emt
00:00:03]} Qc7 {[%clk 00:16:05]} {[%emt 00:00:06]} 17. f4 {[%clk 00:15:18]}
{[%emt 00:01:38]} a5 {[%clk 00:15:14]} {[%emt 00:00:56]} 18. Bc5 {[%clk
00:15:20]} {[%emt 00:00:04]} Ba6 {[%clk 00:14:55]} {[%emt 00:00:23]} 19. Bxa6
{[%clk 00:14:08]} {[%emt 00:01:17]} Rxa6 {[%clk 00:14:59]} {[%emt 00:00:01]} 20.
Rac1 {[%clk 00:14:10]} {[%emt 00:00:01]} Nxc5 {[%clk 00:13:41]} {[%emt
00:01:23]} 21. Nxc5 {[%clk 00:14:13]} {[%emt 00:00:02]} Rb6 {[%clk 00:13:43]}
{[%emt 00:00:04]} 22. Qa3 {[%clk 00:14:04]} {[%emt 00:00:14]} Rb5 {[%clk
00:13:45]} {[%emt 00:00:02]} 23. b3 {[%clk 00:13:41]} {[%emt 00:00:28]} f6
{[%clk 00:13:08]} {[%emt 00:00:41]} 24. Nd3 {[%clk 00:13:07]} {[%emt 00:00:40]}
e5 {[%clk 00:11:47]} {[%emt 00:01:27]} 25. fxe5 {[%clk 00:06:40]} {[%emt
00:06:32]} fxe5 {[%clk 00:11:48]} {[%emt 00:00:04]} 26. dxe5 {[%clk 00:06:43]}
{[%emt 00:00:02]} Bxe5 {[%clk 00:11:50]} {[%emt 00:00:03]} 27. Nxe5 {[%clk
00:06:44]} {[%emt 00:00:04]} Qxe5 {[%clk 00:11:51]} {[%emt 00:00:04]} 28. Rxc6
{[%clk 00:06:03]} {[%emt 00:00:45]} Qxe3+ {[%clk 00:11:18]} {[%emt 00:00:39]}
29. Kh1 {[%clk 00:06:04]} {[%emt 00:00:04]} Qf2 {[%clk 00:09:58]} {[%emt
00:01:25]} 30. Qc1 {[%clk 00:05:22]} {[%emt 00:00:47]} Qe3 {[%clk 00:09:07]}
{[%emt 00:00:56]} 31. Rxg6+ {[%clk 00:03:45]} {[%emt 00:01:42]} Kh7 {[%clk
00:09:10]} {[%emt 00:00:01]} 32. Qc6 {[%clk 00:02:31]} {[%emt 00:01:18]} Rc5
{[%clk 00:08:48]} {[%emt 00:00:28]} 33. Rf7+ {[%clk 00:02:13]} {[%emt
00:00:22]} Kh8 {[%clk 00:08:49]} {[%emt 00:00:05]} 34. Rxh6+ {[%clk 00:02:11]}
{[%emt 00:00:07]} Kg8 {[%clk 00:08:38]} {[%emt 00:00:16]} 35. Qg6# {[%emt
00:00:02]} 1-0



[ePGN "0.1;DGT LiveChess/2.2.6"]

[Event "MČR juniorů a juniorek v rapid šachu 2024"]
[Site "Hotel Fit Fun, Harrachov, Czech Republic"]
[Date "2024.09.22"]
[Round "9.11"]
[White "Pejrimovska Viola Ruby"]
[Black "Stejskal Michal"]
[Result "1-0"]
[TimeControl "20+5"]
[WhiteFideId "23709529"]
[BlackFideId "398195"]
[WhiteElo "1876"]
[BlackElo "1926"]

1. e4 {[%clk 00:20:08]} {[%emt 00:00:01]} e5 {[%clk 00:20:08]} {[%emt
00:00:02]} 2. Nf3 {[%clk 00:20:10]} {[%emt 00:00:03]} Nc6 {[%clk 00:20:12]}
{[%emt 00:00:01]} 3. Nc3 {[%clk 00:20:12]} {[%emt 00:00:03]} Bb4 {[%clk
00:20:10]} {[%emt 00:00:06]} 4. Nd5 {[%clk 00:20:14]} {[%emt 00:00:04]} Bc5
{[%clk 00:20:12]} {[%emt 00:00:03]} 5. Bc4 {[%clk 00:18:52]} {[%emt 00:01:27]}
d6 {[%clk 00:20:11]} {[%emt 00:00:06]} 6. O-O {[%clk 00:18:50]} {[%emt
00:00:06]} Nge7 {[%clk 00:20:08]} {[%emt 00:00:09]} 7. d4 {[%clk 00:18:13]}
{[%emt 00:00:43]} exd4 {[%clk 00:18:31]} {[%emt 00:01:41]} 8. Bg5 {[%clk
00:17:36]} {[%emt 00:00:41]} Bg4 {[%clk 00:16:53]} {[%emt 00:01:44]} 9. h3
{[%clk 00:16:15]} {[%emt 00:01:27]} Bh5 {[%clk 00:16:24]} {[%emt 00:00:33]} 10.
g4 {[%clk 00:14:27]} {[%emt 00:01:53]} Bg6 {[%clk 00:16:27]} {[%emt 00:00:02]}
11. b4 {[%clk 00:14:23]} {[%emt 00:00:09]} Bxb4 {[%clk 00:12:24]} {[%emt
00:04:08]} 12. Nxd4 {[%clk 00:14:04]} {[%emt 00:00:23]} Bxe4 {[%clk 00:12:08]}
{[%emt 00:00:21]} 13. Nxc6 {[%clk 00:13:39]} {[%emt 00:00:30]} bxc6 {[%clk
00:12:08]} {[%emt 00:00:05]} 14. Bxe7 {[%clk 00:11:58]} {[%emt 00:01:45]} Qd7
{[%clk 00:11:29]} {[%emt 00:00:46]} 15. Nxb4 {[%clk 00:11:53]} {[%emt
00:00:09]} Qxe7 {[%clk 00:11:05]} {[%emt 00:00:29]} 16. f3 {[%clk 00:11:36]}
{[%emt 00:00:22]} d5 {[%clk 00:11:08]} {[%emt 00:00:02]} 17. Bd3 {[%clk
00:06:48]} {[%emt 00:04:53]} Qxb4 {[%clk 00:10:37]} {[%emt 00:00:36]} 18. fxe4
{[%clk 00:06:49]} {[%emt 00:00:04]} dxe4 {[%clk 00:10:23]} {[%emt 00:00:19]} 19.
Qe2 {[%clk 00:06:39]} {[%emt 00:00:15]} Qd4+ {[%clk 00:09:57]} {[%emt
00:00:30]} 20. Kh1 {[%clk 00:06:01]} {[%emt 00:00:43]} e3 {[%clk 00:09:51]}
{[%emt 00:00:12]} 21. Rae1 {[%clk 00:05:53]} {[%emt 00:00:13]} O-O {[%clk
00:09:51]} {[%emt 00:00:04]} 22. Qxe3 {[%clk 00:05:50]} {[%emt 00:00:08]} Qd6
{[%clk 00:09:42]} {[%emt 00:00:15]} 23. Qf4 {[%clk 00:05:24]} {[%emt 00:00:31]}
Qd8 {[%clk 00:08:42]} {[%emt 00:01:05]} 24. Bc4 {[%clk 00:04:39]} {[%emt
00:00:49]} Qh4 {[%clk 00:08:31]} {[%emt 00:00:15]} 25. Qe3 {[%clk 00:03:25]}
{[%emt 00:01:19]} h6 {[%clk 00:08:08]} {[%emt 00:00:29]} 26. Rf5 {[%clk
00:03:01]} {[%emt 00:00:28]} g6 {[%clk 00:04:02]} {[%emt 00:04:12]} 27. Rf3
{[%clk 00:02:37]} {[%emt 00:00:29]} Rad8 {[%clk 00:02:52]} {[%emt 00:01:15]} 28.
Qe4 {[%clk 00:02:06]} {[%emt 00:00:36]} Kg7 {[%clk 00:02:19]} {[%emt 00:00:38]}
29. Qe5+ {[%clk 00:02:06]} {[%emt 00:00:05]} Kh7 {[%clk 00:01:56]} {[%emt
00:00:28]} 30. Bxf7 {[%clk 00:01:41]} {[%emt 00:00:30]} Rd7 {[%clk 00:00:51]}
{[%emt 00:01:11]} 31. Qe6 {[%clk 00:01:34]} {[%emt 00:00:11]} Rd6 {[%clk
00:00:14]} {[%emt 00:00:42]} 32. Bxg6+ {[%clk 00:01:32]} {[%emt 00:00:07]} Kg7
{[%clk 00:00:10]} {[%emt 00:00:10]} 33. Rf7+ {[%clk 00:01:26]} {[%emt
00:00:10]} 1-0



[ePGN "0.1;DGT LiveChess/2.2.6"]

[Event "MČR juniorů a juniorek v rapid šachu 2024"]
[Site "Hotel Fit Fun, Harrachov, Czech Republic"]
[Date "2024.09.22"]
[Round "9.12"]
[White "Nagyova Daniela"]
[Black "Pressler Tobias"]
[Result "0-1"]
[TimeControl "20+5"]
[WhiteFideId "390070"]
[BlackFideId "23715359"]
[WhiteElo "1787"]
[BlackElo "1992"]

1. e4 {[%clk 00:20:07]} {[%emt 00:00:02]} c5 {[%clk 00:20:05]} {[%emt
00:00:05]} 2. Nf3 {[%clk 00:20:11]} {[%emt 00:00:01]} Nc6 {[%clk 00:20:09]}
{[%emt 00:00:01]} 3. Nc3 {[%clk 00:20:13]} {[%emt 00:00:03]} g6 {[%clk
00:19:50]} {[%emt 00:00:24]} 4. d4 {[%clk 00:20:16]} {[%emt 00:00:01]} cxd4
{[%clk 00:19:52]} {[%emt 00:00:03]} 5. Nxd4 {[%clk 00:20:19]} {[%emt 00:00:02]}
Bg7 {[%clk 00:19:56]} {[%emt 00:00:02]} 6. Be3 {[%clk 00:20:13]} {[%emt
00:00:10]} Nf6 {[%clk 00:20:00]} {[%emt 00:00:01]} 7. Bc4 {[%clk 00:20:07]}
{[%emt 00:00:11]} Qa5 {[%clk 00:20:03]} {[%emt 00:00:02]} 8. O-O {[%clk
00:19:56]} {[%emt 00:00:16]} O-O {[%clk 00:20:06]} {[%emt 00:00:02]} 9. Bb3
{[%clk 00:19:33]} {[%emt 00:00:28]} d6 {[%clk 00:19:48]} {[%emt 00:00:24]} 10.
h3 {[%clk 00:19:31]} {[%emt 00:00:06]} Bd7 {[%clk 00:19:50]} {[%emt 00:00:03]}
11. Qd2 {[%clk 00:18:58]} {[%emt 00:00:38]} Nxd4 {[%clk 00:19:18]} {[%emt
00:00:38]} 12. Qxd4 {[%clk 00:17:57]} {[%emt 00:01:05]} Ng4 {[%clk 00:19:20]}
{[%emt 00:00:03]} 13. Qd2 {[%clk 00:16:58]} {[%emt 00:01:04]} Nxe3 {[%clk
00:19:02]} {[%emt 00:00:23]} 14. Qxe3 {[%clk 00:16:59]} {[%emt 00:00:04]} Bxc3
{[%clk 00:19:00]} {[%emt 00:00:07]} 15. bxc3 {[%clk 00:16:50]} {[%emt
00:00:14]} Rac8 {[%clk 00:19:03]} {[%emt 00:00:02]} 16. c4 {[%clk 00:16:40]}
{[%emt 00:00:15]} Be6 {[%clk 00:19:06]} {[%emt 00:00:01]} 17. Rab1 {[%clk
00:15:20]} {[%emt 00:01:25]} Rc5 {[%clk 00:19:08]} {[%emt 00:00:04]} 18. f4
{[%clk 00:13:45]} {[%emt 00:01:40]} b6 {[%clk 00:19:00]} {[%emt 00:00:13]} 19.
f5 {[%clk 00:11:55]} {[%emt 00:01:55]} Bxc4 {[%clk 00:18:56]} {[%emt 00:00:09]}
20. fxg6 {[%clk 00:10:24]} {[%emt 00:01:36]} hxg6 {[%clk 00:18:59]} {[%emt
00:00:02]} 21. Rf4 {[%clk 00:08:10]} {[%emt 00:02:19]} Bxb3 {[%clk 00:18:41]}
{[%emt 00:00:24]} 22. axb3 {[%clk 00:07:35]} {[%emt 00:00:40]} Rxc2 {[%clk
00:18:42]} {[%emt 00:00:03]} 23. Rbf1 {[%clk 00:06:46]} {[%emt 00:00:54]} Qc5
{[%clk 00:18:02]} {[%emt 00:00:45]} 24. Qxc5 {[%clk 00:06:40]} {[%emt
00:00:10]} dxc5 {[%clk 00:17:46]} {[%emt 00:00:22]} 25. h4 {[%clk 00:06:36]}
{[%emt 00:00:09]} Rc3 {[%clk 00:17:46]} {[%emt 00:00:04]} 26. h5 {[%clk
00:06:37]} {[%emt 00:00:05]} g5 {[%clk 00:16:32]} {[%emt 00:01:19]} 27. Rf5
{[%clk 00:06:40]} {[%emt 00:00:02]} f6 {[%clk 00:16:36]} {[%emt 00:00:02]} 28.
e5 {[%clk 00:06:41]} {[%emt 00:00:05]} Kg7 {[%clk 00:16:29]} {[%emt 00:00:11]}
29. Rd1 {[%clk 00:05:49]} {[%emt 00:00:56]} Kh6 {[%clk 00:13:20]} {[%emt
00:03:14]} 30. Rd7 {[%clk 00:05:40]} {[%emt 00:00:15]} Kxh5 {[%clk 00:13:13]}
{[%emt 00:00:12]} 31. Rxa7 {[%clk 00:05:07]} {[%emt 00:00:39]} Rxb3 {[%clk
00:10:28]} {[%emt 00:02:50]} 32. Rxe7 {[%clk 00:05:06]} {[%emt 00:00:06]} Kg6
{[%clk 00:10:16]} {[%emt 00:00:16]} 33. Rf1 {[%clk 00:04:44]} {[%emt 00:00:27]}
b5 {[%clk 00:08:35]} {[%emt 00:01:47]} 34. Re6 {[%clk 00:04:11]} {[%emt
00:00:38]} Re3 {[%clk 00:08:20]} {[%emt 00:00:20]} 35. Rb6 {[%clk 00:03:31]}
{[%emt 00:00:45]} Rxe5 {[%clk 00:08:00]} {[%emt 00:00:25]} 36. Rxb5 {[%clk
00:03:34]} {[%emt 00:00:02]} Rfe8 {[%clk 00:08:02]} {[%emt 00:00:03]} 37. g3
{[%clk 00:03:03]} {[%emt 00:00:36]} c4 {[%clk 00:08:02]} {[%emt 00:00:06]} 38.
Rb6 {[%clk 00:02:58]} {[%emt 00:00:10]} R8e6 {[%clk 00:08:04]} {[%emt
00:00:03]} 39. Rbb1 {[%clk 00:02:59]} {[%emt 00:00:04]} c3 {[%clk 00:08:05]}
{[%emt 00:00:04]} 40. Rbc1 {[%clk 00:03:02]} {[%emt 00:00:01]} Rc5 {[%clk
00:08:07]} {[%emt 00:00:03]} 41. Rf3 {[%clk 00:03:01]} {[%emt 00:00:06]} Rec6
{[%clk 00:08:01]} {[%emt 00:00:11]} 42. Rc2 {[%clk 00:03:01]} {[%emt 00:00:05]}
f5 {[%clk 00:07:50]} {[%emt 00:00:15]} 43. Kf2 {[%clk 00:02:59]} {[%emt
00:00:08]} Kf6 {[%clk 00:07:31]} {[%emt 00:00:25]} 44. Re3 {[%clk 00:02:59]}
{[%emt 00:00:04]} Rc4 {[%clk 00:07:22]} {[%emt 00:00:14]} 45. Kf3 {[%clk
00:02:34]} {[%emt 00:00:30]} g4+ {[%clk 00:06:44]} {[%emt 00:00:43]} 46. Kg2
{[%clk 00:02:22]} {[%emt 00:00:17]} Kg5 {[%clk 00:06:47]} {[%emt 00:00:02]} 47.
Rd3 {[%clk 00:02:11]} {[%emt 00:00:16]} f4 {[%clk 00:06:12]} {[%emt 00:00:40]}
48. Rd5+ {[%clk 00:02:14]} {[%emt 00:00:01]} Kf6 {[%clk 00:06:10]} {[%emt
00:00:08]} 49. gxf4 {[%clk 00:02:12]} {[%emt 00:00:08]} Rxf4 {[%clk 00:05:24]}
{[%emt 00:00:51]} 50. Kg3 {[%clk 00:01:38]} {[%emt 00:00:39]} Rfc4 {[%clk
00:05:23]} {[%emt 00:00:05]} 51. Rd3 {[%clk 00:01:27]} {[%emt 00:00:16]} Ke5
{[%clk 00:05:25]} {[%emt 00:00:03]} 52. Re2+ {[%clk 00:01:11]} {[%emt
00:00:21]} Re4 {[%clk 00:05:27]} {[%emt 00:00:03]} 53. Rc2 {[%clk 00:01:16]}
Rec4 {[%clk 00:05:10]} {[%emt 00:00:22]} 54. Re2+ {[%clk 00:01:19]} {[%emt
00:00:01]} Kf5 {[%clk 00:05:08]} {[%emt 00:00:04]} 55. Rc2 {[%clk 00:00:51]}
{[%emt 00:00:36]} Ke4 {[%clk 00:04:59]} {[%emt 00:00:14]} 56. Rd1 {[%clk
00:00:41]} {[%emt 00:00:15]} Rd4 {[%clk 00:05:02]} {[%emt 00:00:01]} 57. Re1+
{[%clk 00:00:32]} {[%emt 00:00:13]} Kd3 {[%clk 00:05:05]} {[%emt 00:00:02]} 58.
Rec1 {[%clk 00:00:26]} {[%emt 00:00:11]} Re4 {[%clk 00:05:01]} {[%emt
00:00:09]} 59. Rf2 {[%clk 00:00:15]} {[%emt 00:00:16]} c2 {[%clk 00:04:59]}
{[%emt 00:00:07]} 60. Rg2 {[%clk 00:00:11]} {[%emt 00:00:09]} Re2 {[%clk
00:04:49]} {[%emt 00:00:15]} 61. Rgg1 {[%clk 00:00:13]} {[%emt 00:00:03]} Kd2
{[%clk 00:04:42]} {[%emt 00:00:12]} 62. Kf4 {[%clk 00:00:11]} {[%emt 00:00:07]}
Rce6 {[%clk 00:04:39]} {[%emt 00:00:08]} 63. Kg3 {[%clk 00:00:11]} {[%emt
00:00:04]} Re1 {[%clk 00:04:37]} {[%emt 00:00:07]} 0-1



[ePGN "0.1;DGT LiveChess/2.2.6"]

[Event "MČR juniorů a juniorek v rapid šachu 2024"]
[Site "Hotel Fit Fun, Harrachov, Czech Republic"]
[Date "2024.09.22"]
[Round "9.13"]
[White "Andrle Filip"]
[Black "Siles Jan"]
[Result "1/2-1/2"]
[TimeControl "20+5"]
[WhiteFideId "23718749"]
[BlackFideId "23715405"]
[WhiteElo "1789"]
[BlackElo "1873"]

1. e4 {[%clk 00:20:08]} {[%emt 00:00:02]} d5 {[%clk 00:20:06]} {[%emt
00:00:05]} 2. exd5 {[%clk 00:20:05]} {[%emt 00:00:07]} Qxd5 {[%clk 00:20:10]} 3.
Nc3 {[%clk 00:20:08]} {[%emt 00:00:02]} Qd6 {[%clk 00:20:14]} 4. d4 {[%clk
00:20:11]} {[%emt 00:00:02]} c6 {[%clk 00:20:19]} 5. Nf3 {[%clk 00:20:04]}
{[%emt 00:00:12]} Bg4 {[%clk 00:20:22]} {[%emt 00:00:02]} 6. Be2 {[%clk
00:20:02]} {[%emt 00:00:07]} Nf6 {[%clk 00:20:23]} {[%emt 00:00:04]} 7. h3
{[%clk 00:20:00]} {[%emt 00:00:07]} Bh5 {[%clk 00:20:25]} {[%emt 00:00:03]} 8.
g3 {[%clk 00:18:56]} {[%emt 00:01:09]} e6 {[%clk 00:20:10]} {[%emt 00:00:20]} 9.
Bf4 {[%clk 00:18:57]} {[%emt 00:00:04]} Qb4 {[%clk 00:19:52]} {[%emt 00:00:23]}
10. a3 {[%clk 00:18:49]} {[%emt 00:00:13]} Qa5 {[%clk 00:19:32]} {[%emt
00:00:24]} 11. O-O {[%clk 00:18:26]} {[%emt 00:00:28]} Be7 {[%clk 00:19:16]}
{[%emt 00:00:22]} 12. Ne5 {[%clk 00:17:46]} {[%emt 00:00:46]} Bxe2 {[%clk
00:18:49]} {[%emt 00:00:31]} 13. Qxe2 {[%clk 00:17:45]} {[%emt 00:00:06]} Nbd7
{[%clk 00:18:24]} {[%emt 00:00:31]} 14. Rfe1 {[%clk 00:17:45]} {[%emt
00:00:04]} Nxe5 {[%clk 00:18:07]} {[%emt 00:00:22]} 15. Bxe5 {[%clk 00:17:47]}
{[%emt 00:00:04]} O-O {[%clk 00:17:19]} {[%emt 00:00:53]} 16. Ne4 {[%clk
00:17:44]} {[%emt 00:00:08]} Qd8 {[%clk 00:16:41]} {[%emt 00:00:43]} 17. Qf3
{[%clk 00:15:54]} {[%emt 00:01:54]} Nxe4 {[%clk 00:15:20]} {[%emt 00:01:27]} 18.
Qxe4 {[%clk 00:15:22]} {[%emt 00:00:37]} Bf6 {[%clk 00:15:03]} {[%emt
00:00:20]} 19. Re3 {[%clk 00:14:25]} {[%emt 00:01:02]} Bxe5 {[%clk 00:13:58]}
{[%emt 00:01:11]} 20. dxe5 {[%clk 00:14:24]} {[%emt 00:00:07]} Qb6 {[%clk
00:13:29]} {[%emt 00:00:34]} 21. Rb3 {[%clk 00:14:22]} {[%emt 00:00:07]} Qc7
{[%clk 00:13:23]} {[%emt 00:00:11]} 22. Rd1 {[%clk 00:13:40]} {[%emt 00:00:45]}
Rad8 {[%clk 00:12:48]} {[%emt 00:00:41]} 23. Rbd3 {[%clk 00:13:07]} {[%emt
00:00:38]} Rd5 {[%clk 00:12:46]} {[%emt 00:00:08]} 24. Rxd5 {[%clk 00:11:41]}
{[%emt 00:01:32]} cxd5 {[%clk 00:12:33]} {[%emt 00:00:18]} 25. Qe2 {[%clk
00:11:38]} {[%emt 00:00:07]} Rc8 {[%clk 00:11:49]} {[%emt 00:00:49]} 26. c3
{[%clk 00:11:38]} {[%emt 00:00:05]} h6 {[%clk 00:09:51]} {[%emt 00:02:02]}
1/2-1/2



[ePGN "0.1;DGT LiveChess/2.2.6"]